bitfinex/quotes_SOLUSD_20241209
["timestamp","ask_amount","ask_price","bid_price","bid_amount"]
[1733753065370,0.81834561,229.2,229.11,23.776884]
[1733753066179,0.81828192,229.19,229.11,23.776884]
[1733753066481,0.81828192,229.19,229.09,23.902374]
[1733753067076,0.81826852,229.21,229.09,23.902374]
[1733753068199,0.81826852,229.21,229.12,0.12549]
[1733753068410,0.81815296,229.24,229.12,0.12549]
[1733753068697,0.81815296,229.24,229.13,23.902374]
[1733753069478,20.0,229.22,229.13,23.902374]
[1733753069795,0.81814902,229.21,229.13,23.902374]
[1733753070369,1.74452118,229.24,229.15,0.12549]
[1733753070572,0.81804638,229.23,229.15,23.902374]
[1733753070796,0.81804137,229.24,229.15,23.902374]
[1733753071013,1.72521876,229.25,229.19,0.25098]
[1733753071307,0.81778028,229.31,229.21,23.902374]
[1733753071968,0.81778028,229.31,229.2,0.12549]
[1733753072194,0.81778028,229.31,229.21,23.902374]
[1733753072505,20.0,229.29,229.21,23.902374]
[1733753072700,20.0,229.29,229.23,23.776884]
[1733753073206,8.37357035,229.32,229.23,23.776884]
[1733753073609,8.37357035,229.32,229.25,23.776884]
[1733753074320,20.0,229.29,229.25,23.776884]
[1733753074622,8.37357035,229.32,229.26,0.12549]
[1733753075522,9.19125343,229.32,229.26,0.12549]
[1733753075892,20.0,229.29,229.26,0.12549]
[1733753076284,1.76537035,229.32,229.26,0.12549]
[1733753076514,0.81765836,229.37,229.26,0.25098]
[1733753078121,20.0,229.35,229.26,0.12549]
[1733753078300,0.81770432,229.34,229.26,0.12549]
[1733753078618,20.0,229.35,229.26,0.25098]
[1733753078821,0.81769049,229.37,229.28,24.027864]
[1733753078986,7.82437655,229.38,229.3,0.12549]
[1733753079194,1.77767655,229.38,229.3,23.902374]
[1733753079625,0.81754763,229.42,229.3,23.902374]
[1733753079916,0.81754763,229.42,229.31,0.12549]
[1733753080417,20.0,229.41,229.31,0.12549]
[1733753080624,0.81749173,229.4,229.31,0.12549]
[1733753081610,20.0,229.41,229.33,23.902374]
[1733753081811,1.70995939,229.42,229.34,0.12549]
[1733753082011,7.33415889,229.49,229.36,0.12549]
[1733753082326,7.33415889,229.49,229.37,23.902374]
[1733753082795,7.33415889,229.49,229.38,0.12549]
[1733753082995,7.33415889,229.49,229.39,24.027864]
[1733753083198,0.81735889,229.49,229.4,0.25098]
[1733753083399,7.33392435,229.55,229.42,0.25098]
[1733753083798,7.33392435,229.55,229.42,0.90463348]
[1733753084013,7.33392435,229.55,229.44,0.25098]
[1733753085310,20.0,229.52,229.44,0.25098]
[1733753086019,0.81700078,229.51,229.43,23.776884]
[1733753086222,0.81700078,229.51,229.44,0.12549]
[1733753086598,20.0,229.52,229.44,0.25098]
[1733753088131,0.81701749,229.51,229.43,23.776884]
[1733753088332,0.81701749,229.51,229.37,1.5541]
[1733753088523,0.81701749,229.51,229.37,2.20781338]
[1733753088823,0.81701749,229.51,229.38,0.12549]
[1733753089003,0.81701749,229.51,229.37,2.20781338]
[1733753089425,0.20182932,229.5,229.38,0.12549]
[1733753089625,0.8172396,229.49,229.38,24.027864]
[1733753090731,0.81718556,229.51,229.38,24.027864]
[1733753091302,0.12549,229.5,229.37,1.5541]
[1733753091645,20.0,229.45,229.32,1.593]
[1733753091932,0.81748235,229.44,229.32,1.593]
[1733753092124,0.81748235,229.44,229.33,0.25098]
[1733753092428,0.81748235,229.44,229.33,0.90486039]
[1733753092728,0.81748235,229.44,229.35,0.12549]
[1733753092917,0.81748235,229.44,229.35,0.25098]
[1733753095006,1.71864425,229.45,229.37,0.25098]
[1733753095232,0.81732353,229.47,229.39,0.12549]
[1733753095527,0.8171729,229.52,229.39,0.25098]
[1733753096030,0.12549,229.51,229.34,0.65373832]
[1733753096324,0.81732918,229.5,229.36,0.12549]
[1733753096534,0.81732918,229.5,229.38,0.12549]
[1733753096735,0.81732918,229.5,229.4,0.12549]
[1733753097328,0.81732918,229.5,229.42,6.75014175]
[1733753097529,0.81732918,229.5,229.4,13.62577351]
[1733753097837,0.8172439,229.49,229.39,13.50028351]
[1733753098038,0.8172439,229.49,229.38,13.50028351]
[1733753098337,20.0,229.48,229.46,27.00056703]
[1733753098720,20.0,229.48,229.47,13.53137923]
[1733753099022,20.0,229.48,229.46,13.53001873]
[1733753099420,20.0,229.48,229.39,41.75169741]
[1733753100117,20.0,229.48,229.4,0.12549]
[1733753100373,143.05181829,229.55,229.39,41.75169741]
[1733753100509,20.0,229.52,229.39,41.75169741]
[1733753101422,20.0,229.48,229.39,41.75169741]
[1733753101718,1.75058843,229.56,229.55,21.73489]
[1733753101924,17.448824,229.68,229.59,1.25084686]
[1733753102122,17.448824,229.68,229.62,0.12549]
[1733753102324,3.1424,229.79,229.64,0.25098]
[1733753102528,3.1424,229.79,229.64,0.90403422]
[1733753102715,3.1424,229.79,229.65,28.4301369]
[1733753102924,3.1424,229.79,229.75,54.00113406]
[1733753103117,3.1424,229.79,229.74,67.50141758]
[1733753103626,137.6,229.82,229.74,67.50141758]
[1733753103815,137.6,229.82,229.74,107.90132056]
[1733753104251,3.1424,229.85,229.74,107.90132056]
[1733753104457,3.1424,229.85,229.77,40.39990298]
[1733753104766,3.1424,229.85,229.81,40.39990298]
[1733753105048,3.1424,229.85,229.8,40.39990298]
[1733753105049,0.12549,229.84,229.8,40.39990298]
[1733753105228,4.9017835,229.85,229.81,8.03199221]
[1733753105429,4.9017835,229.85,229.73,1.25084686]
[1733753105750,0.12549,229.84,229.73,1.25084686]
[1733753106456,20.0,229.84,229.73,1.25084686]
[1733753106640,1.7593835,229.85,229.73,1.25084686]
[1733753106821,20.0,229.87,229.73,1.25084686]
[1733753107144,20.0,229.87,229.74,67.50141758]
[1733753107538,0.12549,229.86,229.74,67.50141758]
[1733753108330,19.92540385,229.86,229.78,67.50141758]
[1733753108825,23.776884,229.85,229.78,67.50141758]
[1733753109029,19.92540385,229.86,229.78,67.50141758]
[1733753109524,19.92540385,229.86,229.79,35.24619753]
[1733753110243,19.92540385,229.86,229.77,80.68628994]
[1733753110244,19.92540385,229.86,229.8,35.24619753]
[1733753110427,0.12549,229.89,229.84,66.56561766]
[1733753110624,23.902374,229.89,229.84,44.94901702]
[1733753111146,23.902374,229.89,229.8,80.68628994]
[1733753112253,0.12549,229.87,229.8,43.97637564]
[1733753112470,137.6,229.86,229.7,1.25084686]
[1733753112642,0.12549,229.85,229.71,0.12549]
[1733753112834,0.12549,229.85,229.72,1.25084686]
[1733753113040,137.6,229.86,229.73,1.25084686]
[1733753113241,137.6,229.86,229.74,0.12549]
[1733753113441,1.74238751,229.89,229.76,0.12549]
[1733753113738,0.12549,229.9,229.76,0.12549]
[1733753114048,0.12549,229.9,229.76,23.776884]
[1733753114444,101.9690872,229.87,229.71,23.902374]
[1733753114638,101.9690872,229.87,229.71,0.12549]
[1733753115260,101.9690872,229.87,229.72,1.25084686]
[1733753115569,101.9690872,229.87,229.71,0.12549]
[1733753115964,101.9690872,229.87,229.71,23.902374]
[1733753116869,20.0,229.83,229.71,23.902374]
[1733753119850,20.0,229.84,229.71,23.902374]
[1733753120162,0.12549,229.83,229.7,1.25084686]
[1733753120480,0.12549,229.83,229.69,1.6479]
[1733753120679,0.12549,229.83,229.7,1.25084686]
[1733753122077,0.12549,229.83,229.71,23.776884]
[1733753122663,0.12549,229.83,229.69,1.6479]
[1733753122664,81.9690872,229.83,229.69,1.6479]
[1733753122894,20.0,229.79,229.69,1.6479]
[1733753123565,20.0,229.75,229.69,1.6479]
[1733753124379,20.0,229.78,229.69,1.6479]
[1733753124883,20.0,229.77,229.69,1.6479]
[1733753128460,20.0,229.79,229.69,1.6479]
[1733753132384,0.12549,229.78,229.69,1.6479]
[1733753133182,0.12549,229.78,229.65,6.2988]
[1733753133183,20.0,229.75,229.65,6.2988]
[1733753136399,43.902374,229.74,229.6,7.9317]
[1733753136565,23.776884,229.72,229.6,7.9317]
[1733753136760,20.0,229.69,229.6,7.9317]
[1733753137278,20.0,229.69,229.61,0.12549]
[1733753138273,20.0,229.69,229.61,1.37633686]
[1733753139279,22.18427406,229.69,229.61,1.37633686]
[1733753140781,2.18427406,229.69,229.61,1.37633686]
[1733753140978,20.0,229.75,229.61,1.37633686]
[1733753140979,112.12549,229.74,229.61,1.37633686]
[1733753141296,20.0,229.71,229.61,1.37633686]
[1733753142984,20.0,229.71,229.6,7.9317]
[1733753144678,4.39869562,229.78,229.66,1.25084686]
[1733753144874,0.12549,229.8,229.64,1.25084686]
[1733753145195,0.12549,229.8,229.66,1.25084686]
[1733753145897,20.0,229.77,229.66,1.25084686]
[1733753147692,20.0,229.77,229.67,6.1386]
[1733753149589,20.0,229.78,229.68,2.93833686]
[1733753149905,20.0,229.77,229.68,2.93833686]
[1733753150113,2.16071523,229.8,229.68,2.93833686]
[1733753150321,112.37647,229.85,229.7,1.25084686]
[1733753150823,112.0,229.85,229.71,0.12549]
[1733753151115,112.0,229.83,229.73,6.0053]
[1733753151319,112.0,229.82,229.73,5.71432001]
[1733753151520,0.12549,229.79,229.68,1.562]
[1733753152093,0.25098,229.79,229.68,1.562]
[1733753152295,0.12549,229.78,229.62,1.25084686]
[1733753152509,20.0,229.7,229.62,1.25084686]
[1733753152701,20.0,229.7,229.61,1.25084686]
[1733753154504,20.0,229.7,229.62,6.4222]
[1733753155425,20.0,229.7,229.62,7.929]
[1733753155805,20.0,229.74,229.62,7.929]
[1733753156408,20.0,229.7,229.62,7.929]
[1733753161616,22.18768163,229.7,229.62,7.929]
[1733753162635,22.18768163,229.7,229.65,1.25084686]
[1733753164932,22.18768163,229.7,229.62,7.929]
[1733753165613,22.18768163,229.7,229.63,1.25084686]
[1733753166835,22.18768163,229.7,229.65,1.25084686]
[1733753167807,2.18768163,229.7,229.65,1.25084686]
[1733753168007,20.0,229.73,229.65,1.25084686]
[1733753168618,20.0,229.75,229.67,1.25084686]
[1733753168938,20.0,229.74,229.67,1.25084686]
[1733753170832,20.0,229.75,229.67,1.25084686]
[1733753172130,2.17716135,229.77,229.7,1.25084686]
[1733753172330,112.0,229.81,229.71,6.1247]
[1733753173324,20.0,229.78,229.71,6.1247]
[1733753173645,20.0,229.78,229.72,1.25084686]
[1733753174141,20.0,229.78,229.73,1.5884]
[1733753174317,20.0,229.79,229.73,1.5884]
[1733753175519,0.12549,229.78,229.73,1.5884]
[1733753175848,0.12549,229.78,229.71,6.1247]
[1733753176839,20.0,229.79,229.71,6.1247]
[1733753177017,20.0,229.79,229.72,1.25084686]
[1733753179942,2.20493852,229.81,229.72,1.25084686]
[1733753180145,0.12549,229.83,229.72,1.25084686]
[1733753181345,24.027864,229.83,229.72,1.25084686]
[1733753181544,20.0,229.8,229.71,6.1247]
[1733753181728,20.0,229.8,229.73,1.25084686]
[1733753182312,20.0,229.8,229.71,7.37554686]
[1733753182967,20.0,229.79,229.73,1.25084686]
[1733753185860,20.0,229.81,229.73,1.25084686]
[1733753186460,22.14743504,229.84,229.75,1.25084686]
[1733753186771,20.0,229.83,229.75,1.25084686]
[1733753187146,6.1247,229.88,229.78,1.5097]
[1733753187670,0.12549,229.88,229.78,1.5097]
[1733753187860,2.15950595,229.88,229.78,1.5097]
[1733753188056,0.12549,229.88,229.78,1.5097]
[1733753188668,20.0,229.86,229.78,1.5097]
[1733753191437,20.0,229.86,229.79,6.0436]
[1733753192256,2.12773118,229.88,229.79,7.29444686]
[1733753192453,14.3648,229.9,229.81,1.25084686]
[1733753192839,16.42316223,229.9,229.81,1.25084686]
[1733753194742,20.0,229.87,229.81,1.25084686]
[1733753195770,20.0,229.87,229.79,7.29444686]
[1733753196165,20.0,229.87,229.79,6.0436]
[1733753197056,20.0,229.87,229.79,7.29444686]
[1733753197848,20.0,229.86,229.79,7.29444686]
[1733753198440,20.0,229.86,229.79,6.0436]
[1733753198650,20.0,229.86,229.79,7.29444686]
[1733753200988,20.0,229.87,229.79,7.29444686]
[1733753204877,0.12549,229.86,229.79,6.0436]
[1733753205549,0.12549,229.82,229.75,1.23501947]
[1733753205755,20.12549,229.82,229.71,1.23501947]
[1733753206080,0.12549,229.8,229.71,1.23501947]
[1733753206253,20.12549,229.8,229.71,1.23501947]
[1733753206875,20.0,229.79,229.71,1.23501947]
[1733753207073,20.0,229.79,229.69,1.23501947]
[1733753207576,0.12549,229.78,229.68,1.23501947]
[1733753207769,20.0,229.77,229.68,1.23501947]
[1733753207960,20.0,229.77,229.7,1.23501947]
[1733753208978,0.12549,229.81,229.7,1.23501947]
[1733753209698,2.49857576,229.81,229.7,1.23501947]
[1733753209979,2.49857576,229.81,229.72,1.23501947]
[1733753209980,2.24759576,229.81,229.72,1.23501947]
[1733753212889,22.24759576,229.81,229.72,1.23501947]
[1733753215997,0.12549,229.79,229.72,1.23501947]
[1733753217468,0.12549,229.79,229.7,1.23501947]
[1733753217668,0.12549,229.79,229.69,6.2858]
[1733753218386,0.12549,229.79,229.69,7.52081947]
[1733753218898,20.12549,229.79,229.69,7.52081947]
[1733753219196,20.12549,229.79,229.71,1.23501947]
[1733753219993,22.22303042,229.79,229.71,1.23501947]
[1733753220599,22.22303042,229.79,229.69,7.52081947]
[1733753222166,20.0,229.78,229.69,7.52081947]
[1733753223173,20.0,229.78,229.72,1.23501947]
[1733753225001,2.22303042,229.79,229.72,1.23501947]
[1733753226923,2.22303042,229.79,229.7,1.23501947]
[1733753227899,20.0,229.78,229.7,1.23501947]
[1733753230117,20.0,229.78,229.72,1.23501947]
[1733753231012,2.22303042,229.79,229.72,1.23501947]
[1733753236221,2.09754042,229.79,229.72,1.23501947]
[1733753236423,0.12549,229.8,229.72,1.23501947]
[1733753237117,20.12549,229.8,229.72,1.23501947]
[1733753239916,0.12549,229.8,229.72,1.23501947]
[1733753240535,22.13058443,229.81,229.74,1.23501947]
[1733753240822,20.0,229.81,229.74,1.23501947]
[1733753242802,22.082238,229.81,229.74,1.23501947]
[1733753245899,2.082238,229.81,229.74,1.23501947]
[1733753246235,20.0,229.82,229.74,1.23501947]
[1733753247713,22.02686468,229.82,229.74,1.23501947]
[1733753248544,22.02686468,229.82,229.8,49.422586]
[1733753248920,22.02686468,229.82,229.8,47.682586]
[1733753250055,0.68000101,229.81,229.68,0.12549]
[1733753250340,0.68000101,229.81,229.71,27.19597472]
[1733753250923,2.02686468,229.82,229.71,27.19597472]
[1733753251126,20.68000101,229.85,229.71,27.19597472]
[1733753251329,20.68000101,229.85,229.72,27.19597472]
[1733753251919,20.68000101,229.85,229.73,27.19597472]
[1733753252330,20.68000101,229.85,229.74,27.19597472]
[1733753254137,0.25098,229.84,229.74,27.19597472]
[1733753254347,20.0,229.81,229.72,33.57477472]
[1733753254645,20.68000101,229.8,229.76,27.19597472]
[1733753257424,20.68000101,229.8,229.73,27.19597472]
[1733753257621,20.68000101,229.8,229.67,6.6502]
[1733753257622,20.68000101,229.8,229.74,27.19597472]
[1733753257920,20.68000101,229.8,229.68,40.29818491]
[1733753257921,20.0,229.79,229.72,27.19597472]
[1733753258134,0.68000101,229.78,229.72,27.19597472]
[1733753258539,0.68000101,229.78,229.73,27.19597472]
[1733753259146,0.68000101,229.78,229.74,27.19597472]
[1733753259522,0.68000101,229.78,229.73,27.19597472]
[1733753260147,0.68000101,229.78,229.68,23.776884]
[1733753260356,0.68000101,229.79,229.68,23.776884]
[1733753260647,20.68000101,229.79,229.73,53.14632862]
[1733753261332,0.68000101,229.79,229.74,53.14632862]
[1733753263938,20.68000101,229.79,229.74,53.14632862]
[1733753264447,20.68000101,229.79,229.73,53.14632862]
[1733753264872,0.12549,229.78,229.73,53.14632862]
[1733753265741,0.12549,229.78,229.72,53.14632862]
[1733753266863,2.03684577,229.8,229.72,53.09852862]
[1733753266864,20.0,229.73,229.72,53.09852862]
[1733753267045,20.0,229.73,229.69,66.55638619]
[1733753267234,0.68000101,229.72,229.66,146.53551643]
[1733753267865,0.68000101,229.72,229.66,66.55638619]
[1733753268463,0.68000101,229.72,229.65,66.55638619]
[1733753269440,20.0,229.73,229.66,23.776884]
[1733753269742,20.0,229.73,229.66,90.33327019]
[1733753270371,21.99617195,229.73,229.66,90.33327019]
[1733753270750,20.0,229.73,229.71,27.34479856]
[1733753270957,20.0,229.73,229.66,90.33327019]
[1733753270958,0.12549,229.76,229.72,27.34479856]
[1733753271271,0.68000101,229.75,229.72,27.34479856]
[1733753271571,0.68000101,229.75,229.66,23.776884]
[1733753271572,0.68000101,229.75,229.69,27.34479856]
[1733753271779,0.68000101,229.75,229.68,27.34479856]
[1733753272070,0.80549101,229.76,229.68,27.34479856]
[1733753272264,0.12549,229.74,229.68,27.34479856]
[1733753272571,0.80549101,229.74,229.68,27.34479856]
[1733753273146,0.68000101,229.74,229.68,27.34479856]
[1733753273345,0.68000101,229.76,229.68,27.34479856]
[1733753273757,0.68000101,229.76,229.69,27.34479856]
[1733753274138,2.74285115,229.76,229.7,27.34479856]
[1733753274954,2.74285115,229.76,229.69,27.34479856]
[1733753275364,0.12549,229.75,229.69,27.34479856]
[1733753275678,0.25098,229.75,229.69,27.34479856]
[1733753276170,20.0,229.73,229.69,27.34479856]
[1733753276369,0.68000101,229.72,229.69,27.34479856]
[1733753276946,20.0,229.73,229.7,27.34479856]
[1733753278547,3.6511362,229.83,229.71,51.12168256]
[1733753278739,0.68000101,229.82,229.76,27.30117045]
[1733753278940,0.68000101,229.86,229.78,27.30117045]
[1733753279179,0.68000101,229.86,229.79,27.30117045]
[1733753279377,0.68000101,229.86,229.8,27.30117045]
[1733753279974,0.80549101,229.87,229.8,27.30117045]
[1733753280470,2.34000101,229.88,229.81,23.776884]
[1733753280678,2.34000101,229.88,229.81,27.30117045]
[1733753280882,2.34000101,229.88,229.86,27.30117045]
[1733753281045,22.34000101,229.88,229.86,27.30117045]
[1733753281856,24.32307812,229.88,229.86,27.30117045]
[1733753282257,24.32307812,229.88,229.85,27.30117045]
[1733753282984,24.32307812,229.88,229.86,27.30117045]
[1733753283483,21.98307711,229.88,229.85,27.30117045]
[1733753285060,1.98307711,229.88,229.85,27.30117045]
[1733753285384,0.68000101,229.88,229.84,27.30117045]
[1733753288347,0.68000101,229.88,229.83,27.30117045]
[1733753289978,0.68000101,229.88,229.85,27.30117045]
[1733753290170,21.97766723,229.89,229.85,27.30117045]
[1733753290771,0.68000101,229.88,229.85,27.30117045]
[1733753291280,0.68000101,229.88,229.84,27.30117045]
[1733753291461,2.65766824,229.89,229.84,27.30117045]
[1733753291660,0.68000101,229.89,229.84,27.30117045]
[1733753294364,0.68000101,229.89,229.83,27.30117045]
[1733753297163,20.68000101,229.89,229.83,27.30117045]
[1733753297391,0.68000101,229.89,229.83,27.30117045]
[1733753297555,0.68000101,229.89,229.82,27.30117045]
[1733753297892,0.12549,229.88,229.82,27.30117045]
[1733753298183,0.12549,229.88,229.81,27.30117045]
[1733753298979,0.12549,229.88,229.82,27.30117045]
[1733753299377,0.12549,229.88,229.81,27.30117045]
[1733753299802,0.25098,229.88,229.81,27.30117045]
[1733753300107,0.12549,229.86,229.78,27.30117045]
[1733753300874,0.25098,229.87,229.77,27.30117045]
[1733753301103,0.12549,229.87,229.77,27.30117045]
[1733753301604,0.12549,229.87,229.78,27.30117045]
[1733753302080,0.68000101,229.86,229.77,27.30117045]
[1733753302278,0.68000101,229.86,229.78,27.30117045]
[1733753302497,0.68000101,229.86,229.77,27.30117045]
[1733753302807,0.12549,229.83,229.77,27.30117045]
[1733753302975,20.0,229.81,229.77,27.30117045]
[1733753303281,20.12549,229.79,229.75,27.30117045]
[1733753303482,20.68000101,229.78,229.75,27.30117045]
[1733753303694,20.0,229.78,229.69,27.30117045]
[1733753303895,20.0,229.78,229.7,0.6528465]
[1733753304214,137.97647,229.84,229.7,0.6528465]
[1733753304381,137.97647,229.84,229.69,27.30117045]
[1733753304882,137.97647,229.84,229.69,23.776884]
[1733753305291,139.98991865,229.84,229.69,23.776884]
[1733753305686,20.0,229.81,229.69,23.776884]
[1733753307015,0.25098,229.8,229.67,28.85177045]
[1733753307201,0.25098,229.8,229.64,0.65289388]
[1733753307202,0.25098,229.8,229.66,27.30117045]
[1733753307384,137.85098,229.8,229.65,27.30117045]
[1733753307713,20.0,229.77,229.66,0.65296959]
[1733753308714,20.0,229.77,229.63,34.55365694]
[1733753308909,20.0,229.77,229.63,7.25248649]
[1733753309410,20.0,229.76,229.63,7.25248649]
[1733753309992,20.0,229.76,229.64,23.776884]
[1733753312234,20.0,229.75,229.64,23.776884]
[1733753313595,20.0,229.75,229.67,27.30117045]
[1733753315297,141.68590214,229.78,229.68,23.776884]
[1733753316312,4.08590214,229.78,229.69,27.14941479]
[1733753316519,20.0,229.76,229.69,27.14941479]
[1733753323448,20.0,229.76,229.7,27.14941479]
[1733753324114,20.0,229.76,229.69,27.14941479]
[1733753324321,4.08590214,229.78,229.7,50.92629879]
[1733753325030,4.08590214,229.78,229.71,27.14941479]
[1733753325609,4.08590214,229.78,229.72,27.14941479]
[1733753326741,4.08590214,229.78,229.73,23.776884]
[1733753326948,4.08590214,229.78,229.73,50.92629879]
[1733753327336,4.08590214,229.78,229.73,27.14941479]
[1733753327650,4.08590214,229.78,229.7,27.14941479]
[1733753328146,4.08590214,229.78,229.71,27.14941479]
[1733753333926,4.08590214,229.78,229.72,27.14941479]
[1733753334442,4.08590214,229.78,229.71,27.14941479]
[1733753335348,4.08590214,229.78,229.72,27.14941479]
[1733753335718,4.08590214,229.78,229.71,27.14941479]
[1733753336147,24.08590214,229.78,229.71,27.14941479]
[1733753339247,4.08590214,229.78,229.71,27.14941479]
[1733753339431,4.08590214,229.78,229.72,27.14941479]
[1733753339841,4.08590214,229.78,229.71,27.14941479]
[1733753340042,4.08590214,229.78,229.73,13.62573611]
[1733753343265,4.08590214,229.78,229.72,13.62573611]
[1733753343429,4.08590214,229.78,229.73,13.62573611]
[1733753344132,4.08590214,229.78,229.74,13.62573611]
[1733753344332,21.6205,229.78,229.74,13.62573611]
[1733753346249,0.12549,229.77,229.74,13.62573611]
[1733753346455,0.12549,229.77,229.71,7.07103611]
[1733753346658,20.25098,229.77,229.71,7.07103611]
[1733753346864,20.25098,229.77,229.68,27.14941479]
[1733753347228,20.0,229.76,229.66,27.14941479]
[1733753347554,20.0,229.76,229.58,6.1795]
[1733753347555,20.0,229.76,229.67,27.14941479]
[1733753348054,20.0,229.76,229.66,27.14941479]
[1733753348562,20.0,229.76,229.67,27.14941479]
[1733753349366,20.0,229.76,229.68,27.14941479]
[1733753351330,20.0,229.75,229.69,27.14941479]
[1733753353565,20.0,229.75,229.7,27.14941479]
[1733753354135,2.48653568,229.76,229.7,27.14941479]
[1733753354446,0.25098,229.77,229.7,27.14941479]
[1733753356441,20.0,229.76,229.66,40.72412218]
[1733753356870,20.0,229.75,229.65,40.72412218]
[1733753358064,0.12549,229.74,229.65,40.72412218]
[1733753359041,0.12549,229.74,229.63,40.72412218]
[1733753359242,20.0,229.73,229.63,40.72412218]
[1733753359433,0.12549,229.72,229.63,40.72412218]
[1733753359635,20.0,229.69,229.62,40.72412218]
[1733753359861,20.0,229.69,229.6,40.72412218]
[1733753360170,20.0,229.69,229.58,40.72412218]
[1733753360338,0.12549,229.7,229.6,40.72412218]
[1733753360666,0.25098,229.7,229.59,40.72412218]
[1733753360865,0.25098,229.7,229.58,41.37736675]
[1733753361033,0.25098,229.7,229.58,40.72412218]
[1733753361468,0.25098,229.7,229.57,40.72412218]
[1733753361762,20.0,229.66,229.56,40.72412218]
[1733753362344,20.0,229.66,229.55,41.37743108]
[1733753362345,137.6,229.64,229.55,41.37743108]
[1733753362548,1.88787,229.65,229.49,67.87353698]
[1733753362549,137.6,229.59,229.49,67.87353698]
[1733753362751,20.0,229.56,229.43,6.4986]
[1733753363043,20.0,229.56,229.42,54.29882958]
[1733753363044,0.6533089,229.55,229.42,54.29882958]
[1733753363235,0.6533089,229.55,229.4,1.5922]
[1733753363236,20.0,229.54,229.4,56.54465355]
[1733753363436,0.6533089,229.53,229.4,56.54465355]
[1733753363833,0.6533089,229.53,229.41,0.25098]
[1733753364261,0.6533089,229.53,229.4,2.24582397]
[1733753365769,20.6533089,229.53,229.41,0.12549]
[1733753365967,20.6533089,229.53,229.4,0.65362397]
[1733753366167,20.6533089,229.53,229.39,0.65368575]
[1733753366473,0.6533089,229.53,229.39,0.65368575]
[1733753367169,0.6533089,229.53,229.4,0.12549]
[1733753367474,0.6533089,229.53,229.4,23.902374]
[1733753368366,0.12549,229.52,229.39,23.776884]
[1733753368581,20.0,229.49,229.39,23.776884]
[1733753368741,0.6533089,229.48,229.39,23.776884]
[1733753370047,0.6533089,229.48,229.37,24.027864]
[1733753370255,0.6533089,229.49,229.37,24.68160764]
[1733753370742,0.6533089,229.49,229.38,0.12549]
[1733753370967,20.0,229.5,229.4,23.902374]
[1733753371953,0.6533089,229.49,229.4,23.902374]
[1733753372349,0.6533089,229.52,229.38,24.43058639]
[1733753372671,0.6533089,229.52,229.42,6.78643577]
[1733753373250,0.6533089,229.52,229.43,6.78643577]
[1733753373645,20.6533089,229.52,229.43,6.78643577]
[1733753374472,20.6533089,229.52,229.38,24.43058639]
[1733753374473,25.63842475,229.52,229.44,6.78643577]
[1733753374676,20.0,229.48,229.44,6.78643577]
[1733753374874,20.0,229.49,229.39,6.78643577]
[1733753375059,20.0,229.49,229.38,6.78643577]
[1733753375256,11.28801585,229.48,229.38,6.78643577]
[1733753375481,148.88801585,229.48,229.34,6.78643577]
[1733753377173,20.0,229.45,229.35,23.776884]
[1733753377477,20.0,229.45,229.35,30.56331977]
[1733753378681,20.0,229.45,229.36,6.78643577]
[1733753379462,20.0,229.45,229.35,23.776884]
[1733753380562,20.0,229.45,229.35,30.56331977]
[1733753380964,22.32718351,229.45,229.35,30.56331977]
[1733753383959,22.32718351,229.45,229.37,23.776884]
[1733753384178,22.32718351,229.45,229.35,30.56331977]
[1733753384386,22.32718351,229.45,229.37,23.776884]
[1733753384888,23.75805,229.48,229.37,23.776884]
[1733753385254,28.74316585,229.48,229.37,23.776884]
[1733753386874,28.74316585,229.48,229.32,6.78643577]
[1733753386875,20.0,229.45,229.32,6.78643577]
[1733753387067,20.0,229.44,229.33,23.776884]
[1733753387886,20.0,229.42,229.33,23.776884]
[1733753388087,20.0,229.42,229.31,24.027864]
[1733753389386,20.0,229.43,229.33,23.776884]
[1733753389968,20.0,229.43,229.32,23.776884]
[1733753390168,20.0,229.43,229.31,24.027864]
[1733753390364,20.0,229.43,229.31,30.81429977]
[1733753390784,20.0,229.43,229.32,0.12549]
[1733753391081,2.41270555,229.48,229.37,0.12549]
[1733753391286,1.5725,229.5,229.37,0.12549]
[1733753391287,1.5725,229.5,229.38,24.027864]